bitfinex/quotes_ETHUSD_20220106
["timestamp","ask_amount","ask_price","bid_price","bid_amount"]
[1641484006748,0.00288024,3390.5,3390.3,0.73731]
[1641484006954,0.00288024,3390.5,3390.4,11.06781097]
[1641484007152,2.7426357,3391.3,3390.4,12.06781097]
[1641484007348,2.7426357,3391.3,3390.7,0.44237]
[1641484007552,0.00685921,3391.2,3390.7,0.44237]
[1641484007948,0.00629078,3391.1,3390.7,0.44237]
[1641484008350,0.00572236,3391.0,3390.7,0.44237]
[1641484008751,0.00515394,3390.9,3390.8,0.83053097]
[1641484009555,1.63711506,3390.9,3390.8,0.83053097]
[1641484011518,0.00515394,3390.9,3390.8,0.83053097]
[1641484012121,1.63711506,3390.9,3390.8,0.83053097]
[1641484013017,0.00515394,3390.9,3390.8,0.83053097]
[1641484013719,1.63711506,3390.9,3390.8,0.83053097]
[1641484018903,0.00515394,3390.9,3390.8,0.83053097]
[1641484019909,1.63711506,3390.9,3390.8,0.83053097]
[1641484020506,1.63711506,3390.9,3390.8,6.70510698]
[1641484020707,1.78426107,3391.6,3390.9,1.33378494]
[1641484020916,1.64239731,3391.3,3391.2,0.73709]
[1641484021206,1.64239731,3391.3,3391.2,2.27249]
[1641484021407,0.00341054,3391.5,3391.3,10.75]
[1641484021661,1.78367161,3391.6,3391.5,9.1]
[1641484021852,1.78367161,3391.6,3391.5,10.3283]
[1641484022058,0.67299703,3391.6,3391.5,11.3283]
[1641484022459,0.67299703,3391.6,3391.5,1.2283]
[1641484022658,0.64372946,3391.6,3391.5,0.00439438]
[1641484023456,3.64372946,3391.6,3391.5,0.00439438]
[1641484028611,3.64372946,3391.6,3391.5,12.01582445]
[1641484028814,2.57092946,3391.6,3391.5,13.66682445]
[1641484029013,1.11067458,3392.1,3391.6,10.75]
[1641484029255,7.458e-05,3392.1,3391.7,1.0]
[1641484029461,0.00284211,3392.0,3391.8,0.73681]
[1641484029860,1.55832637,3392.8,3392.1,1.04521454]
[1641484030067,1.55832637,3392.8,3392.3,0.73688]
[1641484030266,0.00284212,3392.5,3392.2,1.47375]
[1641484030563,0.0022737,3392.4,3392.3,0.73687]
[1641484030971,0.0022737,3392.4,3392.3,2.03687]
[1641484031162,0.0022737,3392.4,3392.3,1.73687]
[1641484031563,0.0022737,3392.4,3392.3,5.48687]
[1641484032363,0.0022737,3392.4,3392.3,8.04858482]
[1641484032566,0.0022737,3392.4,3392.3,11.34858482]
[1641484032767,0.0022737,3392.4,3392.3,9.1553]
[1641484033007,0.0022737,3392.4,3392.3,8.8553]
[1641484033409,7.37e-05,3392.4,3392.3,10.91893699]
[1641484033612,1.48089193,3393.4,3392.7,0.589279]
[1641484033814,1.48089193,3393.4,3393.0,0.73659]
[1641484034007,0.00397896,3393.1,3393.0,1.08759]
[1641484034207,7.896e-05,3393.1,3393.0,1.38759]
[1641484034408,2.16192871,3394.2,3393.1,10.75]
[1641484034608,6.17,3394.3,3394.1,7.12238869]
[1641484034809,6.17,3394.3,3394.1,0.8515]
[1641484034810,2.24931652,3394.2,3394.1,0.8515]
[1641484036009,6.17,3394.3,3394.1,0.8515]
[1641484037258,9.17,3394.3,3393.9,0.73643]
[1641484037459,9.17,3394.3,3394.0,1.71357618]
[1641484037460,2.2881,3394.3,3394.0,1.71357618]
[1641484037661,0.0543,3394.3,3394.2,10.76219453]
[1641484037858,2.16192871,3395.2,3394.4,0.5889879]
[1641484038067,2.16192871,3395.2,3395.0,7.48267994]
[1641484038260,2.83766241,3395.1,3395.0,2.04427994]
[1641484038460,2.84903088,3395.1,3395.0,5.19427994]
[1641484038659,2.84903088,3395.1,3395.0,5.49427994]
[1641484039260,2.84903088,3395.1,3395.0,5.84527994]
[1641484039559,2.84903088,3395.1,3395.0,8.53231731]
[1641484039760,1.77283232,3395.8,3395.0,16.13231731]
[1641484039960,1.77283232,3395.8,3395.3,0.95848]
[1641484039961,1.71788641,3395.8,3395.3,0.95848]
[1641484040162,0.0022737,3395.5,3395.4,0.651]
[1641484040406,0.0022737,3395.5,3395.4,6.05553621]
[1641484040616,0.0022737,3395.5,3395.4,6.79159621]
[1641484040809,0.0022737,3395.5,3395.4,2.59159621]
[1641484041416,0.0022737,3395.5,3395.4,3.32766621]
[1641484042612,0.0022737,3395.5,3395.4,4.91404195]
[1641484043213,0.0022737,3395.5,3395.4,3.32766621]
[1641484044768,0.0022737,3395.5,3395.4,2.59160621]
[1641484045264,0.0022737,3395.5,3395.4,1.85553621]
[1641484046264,0.0022737,3395.5,3395.4,4.75553621]
[1641484046667,12.4429,3395.9,3395.5,10.75]
[1641484046866,12.4429,3395.9,3395.6,4.64245725]
[1641484046867,8.6277,3395.9,3395.6,4.64245725]
[1641484047071,0.6757337,3397.2,3395.7,10.75]
[1641484047269,0.6757337,3397.2,3397.1,1.08309302]
[1641484047572,0.6757337,3397.2,3396.9,0.21989302]
[1641484047770,0.1,3398.0,3397.1,12.2413]
[1641484048012,0.0001,3398.0,3397.4,0.5884945]
[1641484048211,0.0001,3398.0,3397.5,0.351]
[1641484048416,0.0001,3398.0,3397.6,0.351]
[1641484048617,0.0001,3398.0,3397.7,0.71878]
[1641484048811,0.0001,3398.0,3397.7,0.351]
[1641484049013,1.9319014,3397.9,3397.7,0.351]
[1641484049412,1.9319014,3397.9,3397.2,0.00417048]
[1641484049413,0.01136847,3397.8,3397.2,0.00417048]
[1641484049913,0.01080004,3397.7,3397.2,0.00417048]
[1641484050315,0.01023162,3397.6,3397.2,0.00417048]
[1641484050715,0.0096632,3397.5,3397.2,0.00417048]
[1641484051216,0.0001,3398.0,3397.2,0.00417048]
[1641484051217,0.00909477,3397.4,3397.2,0.00417048]
[1641484051664,0.00852635,3397.3,3397.2,0.00417048]
[1641484051861,0.00982712,3397.3,3397.2,0.00417048]
[1641484053265,0.00982712,3397.3,3397.2,0.59274628]
[1641484053665,0.00982712,3397.3,3397.2,0.89274628]
[1641484054065,0.5,3399.0,3397.4,0.36788]
[1641484054465,0.00341054,3397.9,3397.4,0.36788]
[1641484054971,0.00341054,3397.9,3397.2,0.00417048]
[1641484054972,0.00284212,3397.8,3397.2,0.00417048]
[1641484055268,0.00227369,3397.7,3397.2,0.00417048]
[1641484055705,0.00170527,3397.6,3397.2,0.00417048]
[1641484056114,0.00113685,3397.5,3397.2,0.00417048]
[1641484056509,0.00682108,3398.5,3397.2,0.00417048]
[1641484056911,0.00625266,3398.4,3397.2,0.00417048]
[1641484057314,0.00568423,3398.3,3397.2,1.11543597]
[1641484057513,0.00568423,3398.3,3397.2,1.41543597]
[1641484057713,0.00511581,3398.2,3397.2,1.41543597]
[1641484058112,0.00454739,3398.1,3397.2,1.41543597]
[1641484058512,0.73583,3398.5,3397.2,1.41543597]
[1641484058513,0.00397896,3398.0,3397.2,1.41543597]
[1641484058717,0.00397896,3398.0,3397.2,0.30417048]
[1641484058914,1.98700166,3398.0,3397.2,0.00417048]
[1641484059155,0.12482666,3397.9,3397.3,2.35817309]
[1641484059559,0.00284212,3397.8,3397.3,2.35817309]
[1641484059955,0.00227369,3397.7,3397.4,0.36788]
[1641484060356,0.00170527,3397.6,3397.3,2.35817309]
[1641484060758,0.00113685,3397.5,3397.3,2.35817309]
[1641484060958,0.00113685,3397.5,3397.2,1.37325443]
[1641484061159,1.24881224,3398.1,3397.2,1.37325443]
[1641484061160,0.00284212,3397.8,3397.2,1.37325443]
[1641484061557,0.00227369,3397.7,3397.2,1.37325443]
[1641484061958,4.04963406,3398.6,3397.2,0.30417048]
[1641484061959,0.00170527,3397.6,3397.2,0.30417048]
[1641484062258,1.24881224,3398.0,3397.2,0.30417048]
[1641484062259,0.00113685,3397.5,3397.2,0.30417048]
[1641484062458,0.00113685,3397.5,3397.3,0.36791]
[1641484062659,0.00113685,3397.5,3397.3,1.43699395]
[1641484062908,0.00113685,3397.5,3397.3,1.06908395]
[1641484063914,0.00113685,3397.5,3397.2,0.00417048]
[1641484064210,0.00113685,3397.5,3397.3,1.2806637]
[1641484064411,0.00113685,3397.5,3397.3,1.9257637]
[1641484064711,0.00113685,3397.5,3397.3,2.2257637]
[1641484065612,0.95203017,3398.4,3397.4,7.98568]
[1641484065813,0.95203017,3398.4,3397.3,6.7306637]
[1641484066011,0.00170527,3397.8,3397.3,6.7306637]
[1641484066417,0.00113684,3397.7,3397.3,9.38372142]
[1641484066657,0.00113684,3397.7,3397.6,10.48564]
[1641484066856,1.44121502,3398.5,3397.9,1.00521462]
[1641484067056,0.00113684,3397.7,3397.6,0.73564]
[1641484067256,0.00511581,3398.4,3397.6,0.3]
[1641484067458,0.00113684,3397.7,3397.6,0.3]
[1641484067657,0.00454738,3398.3,3397.9,0.29429]
[1641484067857,2.04925571,3398.6,3397.9,0.29429]
[1641484068057,1.44121502,3398.7,3397.9,0.29429]
[1641484068257,0.00568423,3398.5,3397.9,0.29429]
[1641484068557,0.00511581,3398.4,3397.9,0.29429]
[1641484068961,0.00454738,3398.3,3397.9,0.29429]
[1641484069358,0.00397896,3398.2,3397.9,0.29058379]
[1641484069759,0.00341054,3398.1,3397.9,0.29058379]
[1641484070162,0.00284211,3398.0,3397.9,0.29058379]
[1641484071011,1.1402,3399.1,3397.9,0.29058379]
[1641484071414,1.71316591,3399.0,3397.9,0.29058379]
[1641484071814,0.00511581,3398.9,3397.9,0.29058379]
[1641484072213,0.00454739,3398.8,3397.9,0.29058379]
[1641484072611,0.00397897,3398.7,3397.9,0.29058379]
[1641484073015,1.14021339,3399.0,3397.9,0.29058379]
[1641484073212,0.00092477,3398.6,3398.0,0.00397897]
[1641484073413,0.00092477,3398.6,3398.2,0.29427]
[1641484073815,0.00092477,3398.6,3398.3,0.0022737]
[1641484075465,0.00092477,3398.6,3398.3,0.7880737]
[1641484075666,0.00092477,3398.6,3398.3,1.0880737]
[1641484075864,0.00092477,3398.6,3398.4,0.00170527]
[1641484076466,0.00092477,3398.6,3398.4,1.17847377]
[1641484076768,0.00092477,3398.6,3398.5,0.00113685]
[1641484079113,0.00092477,3398.6,3398.5,0.00526953]
[1641484080016,4.90092477,3398.6,3398.5,0.00526953]
[1641484080215,10.75,3398.5,3398.1,0.2943]
[1641484080415,10.75,3398.5,3397.8,0.07721287]
[1641484080616,10.75,3398.5,3398.2,0.00170527]
[1641484080915,10.76252141,3398.3,3398.2,0.00170527]
[1641484081751,10.76252141,3398.3,3396.6,0.88302]
[1641484081752,10.76252141,3398.3,3397.5,0.00568423]
[1641484081959,0.73598,3397.9,3396.7,0.01023162]
[1641484082159,1.61897031,3397.8,3396.7,0.01023162]
[1641484082355,1.61897031,3397.8,3397.0,0.2944]
[1641484082556,1.97198,3398.2,3397.0,0.2944]
[1641484082557,1.47196,3398.2,3397.1,1.06024152]
[1641484082758,10.76252141,3398.3,3397.1,1.06819945]
[1641484082957,10.76252141,3398.3,3397.2,0.00738951]
[1641484082958,0.01252141,3398.3,3397.2,0.00738951]
[1641484083159,3.8336,3398.5,3397.7,1.25720313]
[1641484083357,3.8336,3398.5,3397.2,0.00738951]
[1641484083558,3.8336,3398.5,3398.0,0.2943]
[1641484083862,0.00089591,3398.4,3398.1,0.00227369]
[1641484084459,0.00089591,3398.4,3398.0,0.00689198]
[1641484084657,0.00089591,3398.4,3398.3,11.95516619]
[1641484084861,0.00089591,3398.4,3398.3,2.02866619]
[1641484085059,0.00089591,3398.4,3398.3,3.32980304]
[1641484085258,0.00089591,3398.4,3398.3,2.32980304]
[1641484085509,0.00089591,3398.4,3398.3,3.32980304]
[1641484088414,0.00089591,3398.4,3398.3,5.75051798]
[1641484088614,0.00089591,3398.4,3398.3,3.68080304]
[1641484088815,0.6757337,3399.2,3398.4,10.75]
[1641484088816,1.56599732,3399.1,3398.4,10.75]
[1641484089023,1.56599732,3399.1,3398.8,1.47076]
[1641484089265,1.56827102,3399.1,3398.8,1.47076]
[1641484089474,1.44348872,3399.1,3398.9,0.3]
[1641484089666,0.0022737,3399.1,3398.9,0.3]
[1641484089863,0.0022737,3399.1,3398.9,0.30401926]
[1641484090663,0.0022737,3399.1,3398.9,2.48326646]
[1641484090862,0.0022737,3399.1,3399.0,8.88140373]
[1641484091067,0.0022737,3399.1,3399.0,2.33140373]
[1641484091265,0.0022737,3399.1,3399.0,4.53207836]
[1641484091464,0.0022737,3399.1,3399.0,5.53207836]
[1641484092063,0.0022737,3399.1,3399.0,3.33140373]
[1641484092465,0.0022737,3399.1,3399.0,4.69925307]
[1641484093105,0.0022737,3399.1,3399.0,6.89506515]
[1641484093308,0.0022737,3399.1,3399.0,4.69925307]
[1641484093708,0.0022737,3399.1,3399.0,3.33140373]
[1641484094508,0.00310769,3399.1,3399.0,5.54810434]
[1641484094708,0.00310769,3399.1,3399.0,9.64810434]
[1641484094915,0.00310769,3399.1,3399.0,5.54810434]
[1641484095509,0.00310769,3399.1,3399.0,3.33140373]
[1641484095709,0.6757337,3399.2,3399.0,5.57553659]
[1641484095912,0.6757337,3399.2,3399.1,1.03522]
[1641484096111,0.6757337,3399.2,3399.1,2.03522]
[1641484096309,0.6757337,3399.2,3399.1,4.23396276]
[1641484096957,1.39121502,3400.5,3399.2,10.75]
[1641484097158,1.2193,3400.6,3399.8,0.44118]
[1641484097361,0.00738951,3400.4,3399.8,0.44118]
[1641484097758,0.00682108,3400.3,3398.9,0.00401926]
[1641484097960,0.01971306,3400.3,3398.9,0.00401926]
[1641484098160,0.74180686,3400.2,3398.9,0.00401926]
[1641484098360,0.73554,3400.1,3399.0,0.22066]
[1641484098659,2.15091447,3400.3,3398.9,0.00401926]
[1641484098660,1.62088823,3399.1,3398.9,0.00401926]
[1641484099661,0.73552,3399.9,3398.9,0.00401926]
[1641484100069,0.29787896,3399.8,3399.1,0.22065]
[1641484100508,0.29787896,3399.8,3398.9,0.00401926]
[1641484100509,0.00341054,3399.7,3398.9,0.00401926]
[1641484100710,2.01130367,3399.1,3398.9,0.00401926]
[1641484103111,0.2939,3399.0,3398.9,0.00401926]
[1641484103613,5.6439,3399.0,3398.9,0.0051561]
[1641484103913,0.2939,3399.0,3398.9,0.0051561]
[1641484104353,0.2283466,3399.0,3398.9,0.0051561]
[1641484107759,0.2129466,3399.0,3398.9,0.0051561]
[1641484108617,0.00284212,3399.6,3398.9,0.0051561]
[1641484108618,0.2129466,3399.5,3398.9,0.0051561]
[1641484108814,0.2129466,3399.5,3399.4,1.42338414]
[1641484110517,0.2129466,3399.5,3399.4,2.42338414]
[1641484110714,0.2129466,3399.5,3399.4,1.42338414]
[1641484110913,0.2129466,3399.5,3399.4,2.72338414]
[1641484111117,0.2129466,3399.5,3399.3,0.22061]
[1641484111517,0.00170527,3399.4,3399.3,0.22061]
[1641484111753,0.00170527,3399.4,3399.2,0.44121]
[1641484112158,0.00113685,3399.3,3399.2,0.44121]
[1641484112959,0.00113685,3399.3,3399.2,0.39121]
[1641484113163,0.00113685,3399.3,3399.2,2.79697638]
[1641484114562,0.00113685,3399.3,3399.2,3.09697638]
[1641484114764,0.21408345,3399.3,3399.2,3.09697638]
[1641484115615,0.21408345,3399.3,3399.2,3.10098532]
[1641484116215,0.16408345,3399.3,3399.2,3.10098532]
[1641484117418,0.16408345,3399.3,3399.2,2.80098532]
[1641484117616,0.16408345,3399.3,3399.2,3.38923842]
[1641484118015,0.16408345,3399.9,3399.2,3.38923842]
[1641484118215,0.16408345,3399.9,3399.4,0.22063]
[1641484118419,0.16749399,3399.9,3399.4,0.22063]
[1641484119263,0.16749399,3399.9,3399.6,0.22063]
[1641484119863,0.16749399,3399.9,3399.7,2.40576638]
[1641484120664,0.16749399,3399.9,3399.8,2.40576638]
[1641484121070,0.16749399,3399.9,3399.8,2.40975492]
[1641484123421,4.31749399,3399.9,3399.8,2.40975492]
[1641484123824,4.31749399,3399.9,3399.1,0.44128]
[1641484123825,10.75384508,3399.8,3399.1,1.04461782]
[1641484124027,10.76206024,3399.2,3399.1,1.04461782]
[1641484124323,11.51866024,3399.2,3399.1,0.52485466]
[1641484124524,7.45,3399.1,3398.6,2.05659796]
[1641484124924,1.64427297,3398.7,3398.6,2.05659796]
[1641484125124,1.64427297,3398.7,3397.9,1.18062287]
[1641484125125,2.38002297,3398.7,3398.1,2.05659796]
[1641484125327,2.38002297,3398.7,3398.6,0.00284213]
[1641484126128,0.73571,3398.9,3398.6,0.00284213]
[1641484126325,0.23754453,3399.7,3398.6,0.00284213]
[1641484126525,2.04690692,3399.6,3398.5,1.23303911]
[1641484126763,0.00227368,3399.5,3398.5,1.23303911]
[1641484126964,0.00227368,3399.5,3398.5,1.53303911]
[1641484127164,0.00170526,3399.4,3398.5,1.23303911]
[1641484127362,2.11341023,3399.4,3398.5,1.23303911]
[1641484127563,0.00113684,3399.3,3398.5,1.53303911]
[1641484127763,0.00113684,3399.3,3398.5,1.23303911]
[1641484128165,0.00113684,3399.3,3399.0,0.22067]
[1641484130614,0.16408345,3399.2,3399.0,0.22067]
[1641484131814,0.16408345,3399.2,3399.1,0.0039359]
[1641484141515,0.51508345,3399.2,3399.1,0.0039359]
[1641484142175,0.58627084,3399.2,3399.1,0.0039359]
[1641484143175,17.88627084,3399.2,3399.1,3.59e-05]
[1641484143376,0.7358997,3398.7,3398.0,0.00625267]
[1641484143577,0.73591,3398.4,3398.0,0.00625267]
[1641484143777,0.73591,3398.4,3397.6,0.00852636]
[1641484143976,0.73593,3398.2,3397.5,0.00909478]
[1641484144377,2.08996658,3397.9,3397.5,0.00909478]
[1641484144575,2.08996658,3397.9,3397.3,1.43499593]
[1641484144777,2.08996658,3397.9,3397.4,0.00966321]
[1641484144977,2.08996658,3397.9,3397.6,2.1227546]
[1641484145416,2.82588658,3397.9,3397.7,0.00795794]
[1641484145616,2.82588658,3397.9,3397.6,2.1227546]
[1641484145617,10.75,3397.8,3397.6,0.86871254]
[1641484145818,10.75,3397.8,3396.9,1.03578292]
[1641484146016,0.7361,3397.4,3396.9,1.03578292]
[1641484146214,0.7361,3397.4,3397.0,0.00397896]
[1641484146415,0.73611,3397.2,3397.0,0.00397896]
[1641484147615,0.7362209,3396.9,3396.5,0.00682108]
[1641484147815,0.73622,3396.7,3396.5,0.00682108]
[1641484148415,1.93682167,3396.6,3396.5,0.00682108]
[1641484148815,0.73612,3397.1,3396.0,0.0096632]
[1641484149265,0.73612,3397.1,3396.4,1.30176926]
[1641484149772,2.06308071,3397.7,3397.0,4.09981694]
[1641484149965,0.13819997,3397.9,3397.1,0.22077]
[1641484150169,0.16408345,3397.2,3397.1,0.22418054]
[1641484150366,0.16408345,3397.2,3397.1,0.22077]
[1641484151369,0.16408345,3397.2,3397.0,1.04981694]
[1641484151568,0.16408345,3397.2,3396.6,0.44154]
[1641484151768,0.16408345,3397.2,3396.5,0.3]
[1641484151968,0.16408345,3397.2,3396.7,0.00568423]
[1641484152168,1.52331802,3397.6,3396.8,5.3]
[1641484152372,1.52331802,3397.6,3396.7,0.00568423]
[1641484152567,2.25932802,3397.6,3396.9,0.00454739]
[1641484152768,2.99532802,3397.6,3396.6,0.00625266]
[1641484153018,1.52331802,3397.6,3396.5,1.61291854]
[1641484153218,1.52331802,3397.6,3396.6,0.00625266]
[1641484155423,0.13819997,3397.9,3397.1,1.15618609]
[1641484155621,1.67469581,3398.7,3397.1,1.15618609]
[1641484155622,7.5533,3398.6,3397.1,1.15618609]
[1641484155822,3.791,3398.6,3397.7,1.00585266]
[1641484156022,3.791,3398.6,3397.2,0.00284212]
[1641484156023,0.00454739,3398.5,3397.2,0.00284212]
[1641484156423,2.08380505,3398.4,3397.1,0.00341054]
[1641484156665,0.00397897,3398.4,3397.1,1.47494054]
[1641484156964,0.07669581,3398.7,3398.1,1.17147334]
[1641484156965,0.00341054,3398.3,3398.1,1.17147334]
[1641484157364,0.00284212,3398.2,3398.1,1.47147334]
[1641484157566,0.00284212,3398.2,3398.1,1.17147334]
[1641484157766,0.00284212,3398.2,3397.7,1.22071]
[1641484157967,0.00284212,3398.2,3397.7,1.8092459]
[1641484158167,0.0022737,3398.1,3397.7,1.8092459]
[1641484158567,0.00170527,3398.0,3397.6,4.64643]
[1641484158967,0.00113685,3397.9,3397.8,5.02837885]
[1641484159168,0.00113685,3397.9,3397.8,1.12837885]
[1641484161013,0.00113685,3397.9,3397.8,6.37837885]
[1641484161211,0.00113685,3397.9,3397.8,1.12837885]
[1641484161613,0.00113685,3397.9,3397.8,3.22389004]
[1641484162011,0.00113685,3397.9,3397.8,4.22389004]
[1641484162215,0.74857517,3399.5,3398.7,1.02600348]
[1641484162414,0.74857517,3399.5,3398.3,0.2207]
[1641484162613,1.86921797,3399.3,3398.3,0.2207]
[1641484162917,0.0073895,3399.2,3398.4,0.00393613]
[1641484163314,0.00682108,3399.1,3398.4,0.00393613]
[1641484163713,1.86921797,3399.3,3398.4,0.00393613]
[1641484163714,0.00625266,3399.0,3398.4,0.00393613]
[1641484164166,0.00568423,3398.9,3398.4,1.39456247]
[1641484164366,0.00568423,3398.9,3398.5,0.2207]
[1641484164567,0.00511581,3398.8,3398.5,0.2207]
[1641484164768,0.00511581,3398.8,3398.6,1.3239675]
[1641484164967,3.8889,3399.8,3398.7,10.6]
[1641484165167,0.13819997,3400.2,3398.8,2.52914344]
[1641484165369,0.01023162,3399.7,3398.8,3.52914344]
[1641484165569,0.01023162,3399.7,3399.3,0.44124]
[1641484165766,0.0096632,3399.6,3399.3,0.44124]
[1641484165965,0.0096632,3399.6,3399.4,0.5883157]
[1641484166165,0.00909477,3399.5,3399.4,0.5883157]
[1641484166767,0.00909477,3399.5,3399.3,0.44124]
[1641484167167,0.00852635,3399.4,3399.3,0.44124]
[1641484167668,0.00852635,3399.4,3399.3,1.50577012]
[1641484168313,0.00852635,3399.4,3399.3,3.58908145]
[1641484168517,0.00852635,3399.4,3399.3,3.52925619]
[1641484168716,0.00852635,3399.4,3399.3,4.52925619]
[1641484169012,0.00852635,3399.4,3399.3,10.62925619]
[1641484169412,1.02043996,3400.7,3399.3,10.62925619]
[1641484169413,1.02043996,3400.7,3400.3,1.11231049]
[1641484169613,1.88274393,3401.1,3400.3,0.22059]
[1641484169813,1.88274393,3401.1,3400.1,0.44117]
[1641484169814,0.00682108,3400.6,3400.1,0.44117]
[1641484170115,0.00625266,3400.5,3400.1,0.44117]
[1641484170514,0.00568424,3400.4,3400.1,0.44117]
[1641484170718,0.00568424,3400.4,3400.3,1.38065622]
[1641484170916,0.33122154,3400.7,3400.3,1.38065622]
[1641484171118,0.33122154,3400.7,3400.1,0.44117]
[1641484171320,0.0096632,3401.1,3400.2,0.22058]
[1641484171519,0.23185508,3400.7,3400.2,0.22058]
[1641484171767,0.24094986,3401.0,3400.2,0.22058]
[1641484171968,0.00682108,3400.6,3400.2,0.22058]
[1641484172171,0.00852635,3400.9,3400.2,0.22058]
[1641484172370,2.56839116,3401.2,3400.2,0.22058]
[1641484172371,0.00625266,3400.5,3400.2,0.22058]
[1641484172572,0.00795793,3400.8,3400.2,0.22058]
[1641484172770,2.56839116,3401.2,3400.2,0.22058]
[1641484172771,0.00568424,3400.4,3400.2,0.22058]
[1641484172972,0.00738951,3400.7,3400.2,0.22058]
[1641484173172,0.00511581,3400.3,3400.2,0.22058]
[1641484173375,2.56839116,3401.2,3400.3,0.00393433]
[1641484173376,0.00682108,3400.6,3400.3,0.00393433]
[1641484173569,2.56839116,3401.2,3400.3,0.22452433]
[1641484173968,0.0096632,3401.1,3400.3,0.22452433]
[1641484174374,0.00909478,3401.0,3400.3,0.00393433]
[1641484174568,0.00909478,3401.0,3400.6,0.22059]
[1641484174769,0.6757337,3401.2,3400.6,0.22059]
[1641484174770,0.00852635,3400.9,3400.6,0.22059]
[1641484175068,0.6757337,3401.2,3400.6,0.22059]
[1641484175069,0.00795793,3400.8,3400.6,0.22059]
[1641484175532,0.00738951,3400.7,3400.6,0.22059]
[1641484176232,0.6757337,3401.2,3400.6,0.22059]
[1641484176432,0.6757337,3401.2,3400.7,2.0514021]
[1641484176633,0.51800739,3401.2,3400.8,1.46531071]
[1641484176938,4.22895501,3402.1,3400.9,6.00113685]
[1641484177136,0.24005501,3402.1,3401.1,0.735]
[1641484177334,0.00397896,3401.8,3401.1,0.735]
[1641484177634,0.00341054,3401.7,3401.1,1.035]
[1641484178035,0.00284212,3401.6,3401.1,1.035]
[1641484178238,0.00284212,3401.6,3401.2,0.22051]
[1641484178538,0.00227369,3401.5,3401.2,0.22051]
[1641484178938,0.00170527,3401.4,3401.2,0.22051]
[1641484179373,0.00113685,3401.3,3401.2,0.22051]
[1641484179574,0.00108001,3401.6,3401.3,1.08369863]
[1641484179772,0.00108001,3401.6,3401.4,13.4861821]
[1641484179773,7.369e-05,3401.5,3401.4,13.4861821]
[1641484179972,2.7259948,3402.6,3401.5,10.7]
[1641484180172,2.7259948,3402.6,3401.6,1.5714]
[1641484180372,2.7259948,3402.6,3401.6,1.8714]
[1641484180571,2.7259948,3402.6,3401.7,0.73465]
[1641484180973,2.7259948,3402.6,3401.7,1.46932]
[1641484181177,2.7259948,3402.6,3401.7,1.50664117]
[1641484181373,2.7259948,3402.6,3401.7,1.50299059]
[1641484181573,2.0514021,3403.1,3402.6,5.35]
[1641484181774,0.6757337,3403.2,3402.7,0.2204]
[1641484181972,0.6757337,3403.2,3402.6,0.44079]
[1641484182774,1.99437325,3402.8,3402.6,0.44079]
[1641484183019,0.6757337,3403.2,3402.6,0.44079]
[1641484183219,0.00568424,3402.7,3402.6,0.44079]
[1641484184417,0.00568424,3402.7,3402.6,0.74079]
[1641484184618,0.00568424,3402.7,3402.6,0.44079]
[1641484186970,8.424e-05,3402.7,3402.6,2.4853349]
[1641484187171,0.6757337,3403.2,3402.7,11.95832435]
[1641484187371,0.6757337,3403.2,3402.9,0.5875599]
[1641484187572,0.03852739,3403.2,3403.1,10.7]
[1641484187771,0.03852739,3403.2,3403.1,10.73140534]
[1641484187974,0.3,3404.5,3403.2,10.7]
[1641484188171,0.3,3404.5,3403.2,10.73139046]
[1641484188372,0.00568423,3404.1,3404.0,1.21225427]
[1641484188575,0.00568423,3404.1,3404.0,2.24656427]
[1641484189172,0.00691294,3404.1,3404.0,2.24656427]
[1641484189577,0.00691294,3404.1,3404.0,2.53409267]
[1641484189778,0.00691294,3404.1,3404.0,2.83409267]
[1641484190177,0.00691294,3404.1,3404.0,1.7687284]
[1641484190416,0.00691294,3404.1,3404.0,0.44689]
[1641484190616,0.00691294,3404.1,3404.0,0.14689]
[1641484191414,0.3,3404.5,3404.2,1.3821436]
[1641484191618,0.3,3404.5,3404.2,1.6821436]
[1641484191821,2.2786456,3404.4,3404.2,0.59375]
[1641484192117,0.00113685,3404.3,3404.2,0.29375]
[1641484192315,0.00113685,3404.3,3403.4,0.13819997]
[1641484192716,0.00113685,3404.3,3403.5,0.00341054]
[1641484193217,2.02447924,3403.8,3403.5,0.00341054]
[1641484193416,0.00113685,3404.3,3403.5,0.00341054]
[1641484194017,0.00113685,3404.3,3403.8,1.32067753]
[1641484194292,0.00113685,3404.3,3403.9,0.30113684]
[1641484195388,0.00113685,3404.3,3404.0,2.57826119]
[1641484196190,0.00113685,3404.3,3404.0,0.5140193]
[1641484197391,0.00113685,3404.3,3404.0,1.2483193]
[1641484197790,1.4142311,3404.5,3404.0,1.2483193]
[1641484198019,1.4142311,3404.5,3404.1,0.00113684]
[1641484198224,0.3,3404.5,3404.1,0.00113684]
[1641484202874,2.16656496,3404.4,3404.0,0.00170527]
[1641484203072,0.37118739,3404.5,3404.0,8.0]
[1641484203273,0.217,3404.5,3404.0,8.0]
[1641484203472,0.217,3404.5,3404.1,0.00113685]
[1641484204677,2.14687048,3404.4,3404.1,0.00113685]
[1641484205275,2.14816545,3404.4,3404.1,0.00113685]
[1641484205528,0.217,3404.5,3404.1,0.00113685]
[1641484205731,0.95156,3404.5,3404.1,0.00113685]
[1641484206932,0.217,3404.5,3404.1,0.00113685]
[1641484207342,0.6185947,3404.0,3401.8,1.0]
[1641484207538,10.7,3404.1,3401.9,1.0287101]
[1641484207539,0.01234496,3403.1,3401.9,1.0287101]
[1641484207736,0.9695947,3403.0,3401.9,0.01250531]
[1641484207936,0.6185947,3402.5,3401.9,0.01250531]
[1641484208138,0.6185947,3402.3,3401.9,0.01250531]
[1641484208339,1.2303947,3402.3,3401.6,0.01421058]
[1641484208539,0.6185947,3401.9,3401.6,0.01421058]
[1641484208738,0.9695947,3401.9,3401.6,0.01421058]
[1641484209167,0.9695947,3401.9,3400.3,2.03212134]
[1641484209168,0.6185947,3401.7,3400.3,2.03212134]
[1641484209471,12.30562414,3401.8,3400.1,1.16359087]
[1641484209472,0.6185947,3400.4,3400.1,1.16359087]
[1641484209669,0.6185947,3400.4,3400.0,0.5146503]
[1641484209873,0.6185947,3400.4,3400.2,0.00795793]
[1641484210876,2.62195687,3400.4,3400.2,0.00795793]
[1641484211076,0.27096485,3400.3,3400.2,0.00795793]
[1641484211670,0.27096485,3400.3,3400.1,0.00852635]
[1641484212674,0.27096485,3400.3,3399.5,0.0119369]
[1641484212927,3.0,3400.4,3399.5,0.0119369]
[1641484213431,3.0,3400.4,3399.3,1.35276482]
[1641484213626,3.0,3400.4,3399.4,1.0294091]
[1641484213825,3.0,3400.4,3399.4,1.04191442]
[1641484214025,3.0,3400.4,3399.5,0.0119369]
[1641484215829,3.0,3400.4,3399.5,0.04390566]